[Event "Championnat du monde jeunes U10"]
[Date "2024.11.19"]
[White "Mutyalapati, Modith Aaroh"]
[Black "Mikkelsen, Anders Askjaer"]
[WhiteElo "1893"]
[BlackElo "1745"]
[Round "5.15"]
[Result "1-0"]
[TimeControl "5400+30"]

1. e4 {[%clk 1:30:54]} 1... e6 {[%clk 1:30:48]} 2. d4 {[%clk 1:31:18]} 2... d5
{[%clk 1:31:08]} 3. Nc3 {[%clk 1:31:35]} 3... Nf6 {[%clk 1:31:19]} 4. Bg5 {[%clk
1:31:59]} 4... Be7 {[%clk 1:31:43]} 5. e5 {[%clk 1:32:23]} 5... Nfd7 {[%clk
1:32:01]} 6. Bxe7 {[%clk 1:32:46]} 6... Qxe7 {[%clk 1:32:12]} 7. f4 {[%clk
1:33:11]} 7... a6 {[%clk 1:31:20]} 8. Nf3 {[%clk 1:33:26]} 8... c5 {[%clk
1:30:08]} 9. Qd2 {[%clk 1:33:50]} 9... Nc6 {[%clk 1:29:27]} 10. dxc5 {[%clk
1:32:41]} 10... Nxc5 {[%clk 1:26:47]} 11. Qe3 {[%clk 1:31:52]} 11... O-O {[%clk
1:17:06]} 12. f5 {[%clk 1:31:28]} 12... f6 {[%clk 1:17:09]} 13. fxe6 {[%clk
1:28:40]} 13... Bxe6 {[%clk 1:15:03]} 14. O-O-O {[%clk 1:27:29]} 14... Rad8
{[%clk 1:13:06]} 15. exf6 {[%clk 1:18:11]} 15... Rxf6 {[%clk 1:11:32]} 16. Nd4
{[%clk 1:12:53]} 16... Bg4 {[%clk 0:50:25]} 17. Qxe7 {[%clk 1:11:14]} 17... Nxe7
{[%clk 0:50:53]} 18. Be2 {[%clk 1:10:40]} 18... Bxe2 {[%clk 0:49:50]} 19. Ndxe2
{[%clk 1:07:02]} 19... Rfd6 {[%clk 0:40:48]} 20. Rhe1 {[%clk 1:02:02]} 20... Re6
{[%clk 0:28:59]} 21. Nf4 {[%clk 1:01:45]} 21... Rxe1 {[%clk 0:29:15]} 22. Rxe1
{[%clk 1:02:10]} 22... Kf7 {[%clk 0:29:28]} 23. Re5 {[%clk 0:57:24]} 23... Kf6
{[%clk 0:28:35]} 24. Rh5 {[%clk 0:54:01]} 24... g5 {[%clk 0:27:51]} 25. Nh3
{[%clk 0:51:33]} 25... Ne6 {[%clk 0:21:56]} 26. Rxh7 {[%clk 0:49:30]} 26... Rg8
{[%clk 0:17:45]} 27. Nf2 {[%clk 0:44:29]} 27... Rg7 {[%clk 0:13:40]} 28. Rh8
{[%clk 0:38:49]} 28... Ke5 {[%clk 0:10:54]} 29. Rh3 {[%clk 0:33:49]} 29... Nf5
{[%clk 0:09:55]} 30. Ng4+ {[%clk 0:33:19]} 30... Kd6 {[%clk 0:09:39]} 31. Nf6
{[%clk 0:32:39]} 31... Rf7 {[%clk 0:06:45]} 32. Nfxd5 {[%clk 0:32:34]} 32...
Nfd4 {[%clk 0:06:42]} 33. Rd3 {[%clk 0:31:51]} 33... Rf1+ {[%clk 0:06:04]} 34.
Rd1 {[%clk 0:32:02]} 34... Rxd1+ {[%clk 0:05:34]} 35. Kxd1 {[%clk 0:32:25]}
35... b5 {[%clk 0:05:46]} 36. Ne3 {[%clk 0:31:57]} 36... Nf4 {[%clk 0:05:31]}
37. Ne4+ {[%clk 0:32:20]} 37... Ke5 {[%clk 0:05:42]} 38. Nxg5 {[%clk 0:32:45]}
38... a5 {[%clk 0:04:58]} 39. c3 {[%clk 0:31:07]} 39... Nc6 {[%clk 0:04:56]} 40.
Kd2 {[%clk 0:31:28]} 40... b4 {[%clk 0:04:39]} 41. g3 {[%clk 0:31:11]} 41... Ng6
{[%clk 0:04:29]} 42. Kd3 {[%clk 0:31:08]} 42... bxc3 {[%clk 0:04:39]} 43. bxc3
{[%clk 0:31:32]} 43... a4 {[%clk 0:04:54]} 44. Nc4+ {[%clk 0:31:48]} 44... Kf5
{[%clk 0:05:12]} 45. Nf3 {[%clk 0:32:07]} 45... Kg4 {[%clk 0:05:19]} 46. Ke4
{[%clk 0:32:29]} 46... Nf8 {[%clk 0:04:51]} 47. Nfe5+ {[%clk 0:32:49]} 47...
Nxe5 {[%clk 0:05:05]} 48. Nxe5+ {[%clk 0:33:13]} 48... Kh3 {[%clk 0:05:17]} 49.
g4 {[%clk 0:33:39]} 49... Kh4 {[%clk 0:04:07]} 50. Kf5 {[%clk 0:33:56]} 50...
Nh7 {[%clk 0:04:23]} 51. c4 {[%clk 0:34:22]} 51... Ng5 {[%clk 0:03:57]} 52. Ng6+
{[%clk 0:34:46]} 1-0

[Variant "Standard"]
[Site "Europe Echecs"]

[Event "Championnat du monde jeunes U10"]
[Date "2024.11.19"]
[White "Azimov, Yasin"]
[Black "Melkonyan, Davit"]
[WhiteElo "1759"]
[BlackElo "1842"]
[Round "5.16"]
[Result "1-0"]
[TimeControl "5400+30"]

1. d4 {[%clk 1:30:55]} 1... d5 {[%clk 1:30:52]} 2. Bf4 {[%clk 1:31:11]} 2... Nf6
{[%clk 1:30:52]} 3. Nc3 {[%clk 1:31:31]} 3... c5 {[%clk 1:29:48]} 4. e3 {[%clk
1:31:32]} 4... a6 {[%clk 1:28:36]} 5. Qd2 {[%clk 1:27:10]} 5... Nc6 {[%clk
1:24:58]} 6. f3 {[%clk 1:26:05]} 6... cxd4 {[%clk 1:16:00]} 7. exd4 {[%clk
1:26:21]} 7... Bf5 {[%clk 1:14:10]} 8. g4 {[%clk 1:20:00]} 8... Bg6 {[%clk
1:13:42]} 9. a3 {[%clk 1:15:00]} 9... e6 {[%clk 1:12:40]} 10. h4 {[%clk
1:12:51]} 10... h5 {[%clk 1:04:04]} 11. g5 {[%clk 1:12:05]} 11... Ng8 {[%clk
0:58:29]} 12. Bd3 {[%clk 1:06:46]} 12... Nge7 {[%clk 0:56:32]} 13. Bxg6 {[%clk
1:04:54]} 13... Nxg6 {[%clk 0:56:07]} 14. Nge2 {[%clk 1:03:25]} 14... Bd6 {[%clk
0:52:47]} 15. Bxd6 {[%clk 0:44:56]} 15... Qxd6 {[%clk 0:53:09]} 16. Kf2 {[%clk
0:43:35]} 16... Nce7 {[%clk 0:46:55]} 17. Ng3 {[%clk 0:42:01]} 17... Nf4 {[%clk
0:43:44]} 18. Rae1 {[%clk 0:37:44]} 18... Rc8 {[%clk 0:34:59]} 19. Nce2 {[%clk
0:30:54]} 19... Nxe2 {[%clk 0:31:03]} 20. Rxe2 {[%clk 0:29:42]} 20... Kd7 {[%clk
0:28:28]} 21. f4 {[%clk 0:25:15]} 21... g6 {[%clk 0:21:54]} 22. Rhe1 {[%clk
0:17:00]} 22... Rhe8 {[%clk 0:20:30]} 23. Kf3 {[%clk 0:16:17]} 23... Nc6 {[%clk
0:19:27]} 24. Re3 {[%clk 0:14:36]} 24... Qc7 {[%clk 0:15:38]} 25. c4 {[%clk
0:06:57]} 25... Ne7 {[%clk 0:13:12]} 26. c5 {[%clk 0:06:52]} 26... b6 {[%clk
0:11:49]} 27. b4 {[%clk 0:05:49]} 27... bxc5 {[%clk 0:11:54]} 28. dxc5 {[%clk
0:05:47]} 28... Qb7 {[%clk 0:10:41]} 29. Kf2 {[%clk 0:05:34]} 29... Qc6 {[%clk
0:10:07]} 30. Ne4 {[%clk 0:05:47]} 30... Nf5 {[%clk 0:08:55]} 31. Nf6+ {[%clk
0:05:45]} 31... Ke7 {[%clk 0:08:05]} 32. Re5 {[%clk 0:03:58]} 32... Red8 {[%clk
0:07:23]} 33. Rxd5 {[%clk 0:03:41]} 33... Rxd5 {[%clk 0:06:49]} 34. Nxd5+ {[%clk
0:04:09]} 34... Kf8 {[%clk 0:06:40]} 35. Nf6 {[%clk 0:02:49]} 35... Nxh4 {[%clk
0:05:43]} 36. Ne4 {[%clk 0:03:05]} 36... Nf5 {[%clk 0:05:21]} 37. Qc3 {[%clk
0:01:58]} 37... Kg8 {[%clk 0:03:56]} 38. Nf6+ {[%clk 0:02:03]} 38... Kf8 {[%clk
0:04:18]} 39. Rd1 {[%clk 0:01:56]} 39... Nh4 {[%clk 0:03:00]} 40. Qg3 {[%clk
0:02:13]} 40... Nf5 {[%clk 0:03:22]} 41. Qd3 {[%clk 0:02:38]} 41... Qc7 {[%clk
0:01:58]} 42. Nd7+ {[%clk 0:03:01]} 42... Ke8 {[%clk 0:02:18]} 43. Ne5 {[%clk
0:03:22]} 43... Ne7 {[%clk 0:02:39]} 44. Qxa6 {[%clk 0:03:40]} 44... Nd5 {[%clk
0:02:47]} 45. Kf3 {[%clk 0:03:09]} 45... Qb8 {[%clk 0:01:59]} 46. Qa4+ {[%clk
0:03:12]} 46... Ke7 47. Qd7+ {[%clk 0:03:39]} 1-0

[Variant "Standard"]
[Site "Europe Echecs"]

[Event "Championnat du monde jeunes U10"]
[Date "2024.11.19"]
[White "Mirzhanov, Arlan"]
[Black "Nguyen Truong An Khang"]
[WhiteElo "1721"]
[BlackElo "1836"]
[Round "5.17"]
[Result "1-0"]
[TimeControl "5400+30"]

1. e4 {[%clk 1:30:43]} 1... c6 {[%clk 1:30:54]} 2. d4 {[%clk 1:30:52]} 2... d5
{[%clk 1:31:20]} 3. e5 {[%clk 1:31:05]} 3... c5 {[%clk 1:31:38]} 4. dxc5 {[%clk
1:31:26]} 4... e6 {[%clk 1:32:02]} 5. a3 {[%clk 1:31:46]} 5... Bxc5 {[%clk
1:32:27]} 6. b4 {[%clk 1:31:57]} 6... Bb6 {[%clk 1:32:42]} 7. Bd3 {[%clk
1:32:21]} 7... Ne7 {[%clk 1:32:47]} 8. Bb2 {[%clk 1:32:26]} 8... Ng6 {[%clk
1:28:26]} 9. Nf3 {[%clk 1:32:04]} 9... Nc6 {[%clk 1:27:14]} 10. b5 {[%clk
1:29:09]} 10... Na5 {[%clk 1:20:47]} 11. h4 {[%clk 1:28:45]} 11... Nf4 {[%clk
1:18:59]} 12. Bf1 {[%clk 1:26:24]} 12... Bd7 {[%clk 1:12:31]} 13. g3 {[%clk
1:21:36]} 13... Ng6 {[%clk 1:11:14]} 14. Nbd2 {[%clk 1:20:50]} 14... Qc7 {[%clk
1:05:03]} 15. a4 {[%clk 1:18:05]} 15... Rc8 {[%clk 0:54:30]} 16. Bd3 {[%clk
1:11:32]} 16... Ne7 {[%clk 0:44:05]} 17. Kf1 {[%clk 1:06:40]} 17... h6 {[%clk
0:41:52]} 18. Ba3 {[%clk 0:58:11]} 18... Qc3 {[%clk 0:34:44]} 19. Qb1 {[%clk
0:42:53]} 19... Bc5 {[%clk 0:25:05]} 20. Bb2 {[%clk 0:38:45]} 20... Qb4 {[%clk
0:25:22]} 21. h5 {[%clk 0:38:46]} 21... Bb6 {[%clk 0:15:30]} 22. Rh4 {[%clk
0:32:10]} 22... Qc5 {[%clk 0:15:50]} 23. Nd4 {[%clk 0:28:08]} 23... Qc7 {[%clk
0:10:57]} 24. f4 {[%clk 0:18:55]} 24... O-O {[%clk 0:10:46]} 25. N2f3 {[%clk
0:15:47]} 25... Nc4 {[%clk 0:10:15]} 26. Kg2 {[%clk 0:11:09]} 26... Ne3+ {[%clk
0:07:05]} 27. Kh2 {[%clk 0:10:18]} 27... Bxd4 {[%clk 0:05:21]} 28. Nxd4 {[%clk
0:10:20]} 28... N3f5 {[%clk 0:05:27]} 29. Rh3 {[%clk 0:09:24]} 29... Qc5 {[%clk
0:04:14]} 30. Qg1 {[%clk 0:08:31]} 30... Qb4 {[%clk 0:02:43]} 31. Nb3 {[%clk
0:07:20]} 31... d4 {[%clk 0:01:34]} 32. Ba3 {[%clk 0:07:02]} 32... Qc3 {[%clk
0:01:20]} 33. g4 {[%clk 0:06:50]} 33... Ne3 {[%clk 0:00:37]} 34. Bxe7 {[%clk
0:06:06]} 34... Rfe8 {[%clk 0:01:06]} 35. Bd6 {[%clk 0:06:22]} 35... Kh8 {[%clk
0:00:35]} 36. Nxd4 {[%clk 0:06:07]} 36... Qd2+ {[%clk 0:00:37]} 37. Kh1 {[%clk
0:04:09]} 37... Nd5 {[%clk 0:00:33]} 38. Ne2 {[%clk 0:03:57]} 38... Nxf4 {[%clk
0:00:38]} 39. Nxf4 {[%clk 0:04:02]} 39... Qxf4 {[%clk 0:01:06]} 40. Qg2 {[%clk
0:02:36]} 40... Qg5 {[%clk 0:00:38]} 41. Qe4 {[%clk 0:02:28]} 41... g6 {[%clk
0:00:31]} 42. hxg6 {[%clk 0:02:25]} 42... fxg6 {[%clk 0:00:32]} 43. Rh5 {[%clk
0:02:44]} 43... Qxh5+ {[%clk 0:00:31]} 44. gxh5 {[%clk 0:03:08]} 44... Rg8
{[%clk 0:00:46]} 45. Rg1 {[%clk 0:03:09]} 45... Be8 {[%clk 0:01:09]} 46. Be7
{[%clk 0:03:24]} 46... Rc7 {[%clk 0:01:09]} 47. Bf6+ {[%clk 0:03:51]} 47... Rcg7
{[%clk 0:01:35]} 48. Rxg6 {[%clk 0:04:04]} 48... Rf8 {[%clk 0:00:34]} 49. Rxh6+
{[%clk 0:04:19]} 49... Kg8 {[%clk 0:00:56]} 50. Rh8+ {[%clk 0:04:10]} 50... Kf7
{[%clk 0:00:52]} 51. Qg6+ 1-0

[Variant "Standard"]
[Site "Europe Echecs"]

[Event "Championnat du monde jeunes U10"]
[Date "2024.11.19"]
[White "Akramov, Khasan"]
[Black "Li, Weilong"]
[WhiteElo "1835"]
[BlackElo "1735"]
[Round "5.18"]
[Result "1/2-1/2"]
[TimeControl "5400+30"]

1. c4 {[%clk 1:30:58]} 1... e5 {[%clk 1:30:56]} 2. g3 {[%clk 1:31:23]} 2... Nf6
{[%clk 1:31:20]} 3. Bg2 {[%clk 1:31:47]} 3... d5 {[%clk 1:31:42]} 4. cxd5 {[%clk
1:32:12]} 4... Nxd5 {[%clk 1:32:06]} 5. Nf3 {[%clk 1:32:33]} 5... Nc6 {[%clk
1:32:32]} 6. Nc3 {[%clk 1:32:19]} 6... Nb6 {[%clk 1:32:53]} 7. O-O {[%clk
1:32:41]} 7... Be7 {[%clk 1:33:16]} 8. b3 {[%clk 1:33:03]} 8... O-O {[%clk
1:33:35]} 9. Bb2 {[%clk 1:33:13]} 9... Re8 {[%clk 1:33:54]} 10. Rc1 {[%clk
1:33:00]} 10... Bf5 {[%clk 1:29:43]} 11. d3 {[%clk 1:30:26]} 11... Qd7 {[%clk
1:28:50]} 12. Ne4 {[%clk 1:24:18]} 12... f6 {[%clk 1:22:01]} 13. Nc5 {[%clk
1:22:19]} 13... Bxc5 {[%clk 1:20:41]} 14. Rxc5 {[%clk 1:22:35]} 14... Bh3 {[%clk
1:20:23]} 15. Qc1 {[%clk 1:17:59]} 15... Bxg2 {[%clk 1:20:45]} 16. Kxg2 {[%clk
1:18:25]} 16... a5 {[%clk 1:15:06]} 17. a4 {[%clk 1:13:35]} 17... Qe6 {[%clk
1:12:00]} 18. Nd2 {[%clk 1:06:15]} 18... Nd7 {[%clk 1:03:12]} 19. Rc4 {[%clk
1:02:22]} 19... Qd5+ {[%clk 1:02:43]} 20. Kg1 {[%clk 1:02:37]} 20... Rac8 {[%clk
1:00:32]} 21. Rh4 {[%clk 0:50:51]} 21... Ne7 {[%clk 1:00:00]} 22. Qc4 {[%clk
0:50:40]} 22... Nb6 {[%clk 0:57:40]} 23. Qxd5+ {[%clk 0:49:43]} 23... Nbxd5
{[%clk 0:57:17]} 24. Rc4 {[%clk 0:47:16]} 24... Kf7 {[%clk 0:53:40]} 25. Rfc1
{[%clk 0:44:26]} 25... Nc6 {[%clk 0:53:20]} 26. Ne4 {[%clk 0:42:12]} 26... Nb6
{[%clk 0:53:44]} 27. Rc5 {[%clk 0:37:07]} 27... Nd7 {[%clk 0:50:06]} 28. Rb5
{[%clk 0:36:23]} 28... Rb8 {[%clk 0:50:27]} 29. Nc5 {[%clk 0:34:42]} 29... Nxc5
{[%clk 0:50:50]} 30. Rbxc5 {[%clk 0:34:53]} 30... Ke6 {[%clk 0:51:04]} 31. e3
{[%clk 0:29:02]} 31... Red8 {[%clk 0:51:22]} 32. d4 {[%clk 0:28:33]} 32... exd4
{[%clk 0:51:36]} 33. exd4 {[%clk 0:28:42]} 33... Rd5 {[%clk 0:51:54]} 34. Rxd5
{[%clk 0:28:20]} 34... Kxd5 {[%clk 0:52:20]} 35. Rc5+ {[%clk 0:28:42]} 35... Kd6
{[%clk 0:52:43]} 36. Ba3 {[%clk 0:27:23]} 36... Kd7 {[%clk 0:50:37]} 37. d5
{[%clk 0:22:26]} 37... Nd4 {[%clk 0:51:01]} 38. Rxa5 {[%clk 0:22:18]} 38... Nxb3
{[%clk 0:51:02]} 39. Rb5 {[%clk 0:20:43]} 39... Nd4 {[%clk 0:51:26]} 40. Rb2
{[%clk 0:16:35]} 40... b5 {[%clk 0:49:41]} 41. Bc5 {[%clk 0:14:35]} 41... Nf3+
{[%clk 0:50:04]} 42. Kf1 {[%clk 0:14:33]} 42... c6 {[%clk 0:50:23]} 43. dxc6+
{[%clk 0:13:50]} 43... Kxc6 {[%clk 0:50:49]} 44. Ba7 {[%clk 0:14:13]} 44... Rb7
{[%clk 0:50:43]} 45. axb5+ {[%clk 0:14:29]} 45... Rxb5 {[%clk 0:51:09]} 46. Rxb5
{[%clk 0:14:53]} 46... Kxb5 47. h4 {[%clk 0:14:48]} 47... Kc4 {[%clk 0:52:01]}
48. Be3 {[%clk 0:14:10]} 48... Kd3 {[%clk 0:52:16]} 49. Bc5 {[%clk 0:13:53]}
49... Nd2+ {[%clk 0:51:49]} 50. Kg2 {[%clk 0:13:42]} 50... Ke4 {[%clk 0:52:11]}
51. h5 {[%clk 0:13:07]} 51... Nf3 {[%clk 0:51:55]} 52. Bf8 {[%clk 0:13:26]}
52... g5 {[%clk 0:52:18]} 53. hxg6 {[%clk 0:13:37]} 53... hxg6 {[%clk 0:52:43]}
54. g4 {[%clk 0:10:45]} 54... Kf4 {[%clk 0:52:54]} 55. Be7 {[%clk 0:10:47]}
55... Kxg4 {[%clk 0:52:25]} 56. Bxf6 {[%clk 0:11:13]} 56... g5 {[%clk 0:52:45]}
57. Bxg5 {[%clk 0:11:37]} 57... Nxg5 {[%clk 0:53:11]} 58. f4 {[%clk 0:11:57]}
58... Kxf4 {[%clk 0:53:38]} 1/2-1/2

[Variant "Standard"]
[Site "Europe Echecs"]

[Event "Championnat du monde jeunes U10"]
[Date "2024.11.19"]
[White "Deepak Ambattu, Rithvik"]
[Black "Todmunkh, Turbat"]
[WhiteElo "2063"]
[BlackElo "1773"]
[Round "5.19"]
[Result "1-0"]
[TimeControl "5400+30"]

1. e4 {[%clk 1:30:58]} 1... e5 {[%clk 1:30:46]} 2. Nf3 {[%clk 1:31:24]} 2... Nc6
{[%clk 1:31:03]} 3. Bb5 {[%clk 1:31:50]} 3... a6 {[%clk 1:31:26]} 4. Ba4 {[%clk
1:32:17]} 4... Nf6 {[%clk 1:31:45]} 5. O-O {[%clk 1:32:41]} 5... Be7 {[%clk
1:31:47]} 6. Re1 {[%clk 1:32:21]} 6... b5 {[%clk 1:32:09]} 7. Bb3 {[%clk
1:32:49]} 7... O-O {[%clk 1:32:26]} 8. d3 {[%clk 1:33:00]} 8... d6 {[%clk
1:32:50]} 9. c3 {[%clk 1:32:40]} 9... Na5 {[%clk 1:32:44]} 10. Bc2 {[%clk
1:33:03]} 10... c5 {[%clk 1:32:58]} 11. Nbd2 {[%clk 1:32:27]} 11... Nc6 {[%clk
1:33:01]} 12. Nf1 {[%clk 1:31:58]} 12... h6 {[%clk 1:33:08]} 13. h3 {[%clk
1:28:07]} 13... Re8 {[%clk 1:33:22]} 14. Ng3 {[%clk 1:25:28]} 14... Bf8 {[%clk
1:33:19]} 15. d4 {[%clk 1:22:20]} 15... Bb7 {[%clk 1:00:30]} 16. d5 {[%clk
1:17:03]} 16... Na5 {[%clk 0:53:36]} 17. Nf5 {[%clk 1:08:48]} 17... Bc8 {[%clk
0:53:01]} 18. g4 {[%clk 1:04:25]} 18... Bxf5 {[%clk 0:49:46]} 19. gxf5 {[%clk
1:04:28]} 19... Nh7 {[%clk 0:50:01]} 20. Kh2 {[%clk 1:00:57]} 20... Kh8 {[%clk
0:49:07]} 21. Rg1 {[%clk 0:57:16]} 21... Be7 {[%clk 0:48:57]} 22. b3 {[%clk
0:54:57]} 22... Nb7 {[%clk 0:43:36]} 23. Qe2 {[%clk 0:52:38]} 23... Qd7 {[%clk
0:40:14]} 24. Bd2 {[%clk 0:47:22]} 24... a5 {[%clk 0:29:10]} 25. Bd3 {[%clk
0:46:32]} 25... c4 {[%clk 0:22:37]} 26. bxc4 {[%clk 0:46:51]} 26... bxc4 {[%clk
0:23:03]} 27. Bxc4 {[%clk 0:47:11]} 27... Rec8 {[%clk 0:22:39]} 28. Bb5 {[%clk
0:46:59]} 28... Qd8 {[%clk 0:22:59]} 29. Bc6 {[%clk 0:45:58]} 29... Rab8 {[%clk
0:22:41]} 30. c4 {[%clk 0:42:19]} 30... Nc5 {[%clk 0:20:14]} 31. Bc3 {[%clk
0:37:53]} 31... Ng5 {[%clk 0:10:01]} 32. Nd2 {[%clk 0:36:12]} 32... Bf8 {[%clk
0:07:16]} 33. Rab1 {[%clk 0:34:14]} 33... a4 {[%clk 0:03:28]} 34. Qe3 {[%clk
0:31:29]} 34... f6 {[%clk 0:02:07]} 35. f3 {[%clk 0:30:39]} 35... Rxb1 {[%clk
0:01:20]} 36. Rxb1 {[%clk 0:30:59]} 36... Rb8 {[%clk 0:01:39]} 37. Rb5 {[%clk
0:30:55]} 37... Be7 {[%clk 0:00:49]} 38. Qe2 {[%clk 0:29:44]} 38... Qc8 {[%clk
0:00:34]} 39. Qf1 {[%clk 0:29:29]} 39... Kh7 {[%clk 0:00:36]} 40. Qb1 {[%clk
0:29:00]} 40... Rxb5 {[%clk 0:00:40]} 41. cxb5 {[%clk 0:29:15]} 41... g6 {[%clk
0:00:42]} 42. h4 {[%clk 0:28:17]} 42... Nf7 {[%clk 0:00:33]} 43. fxg6+ {[%clk
0:27:56]} 43... Kxg6 {[%clk 0:00:57]} 44. Qg1+ {[%clk 0:27:41]} 44... Kh7 {[%clk
0:00:41]} 45. Nc4 {[%clk 0:21:29]} 45... f5 {[%clk 0:00:32]} 46. Nb6 {[%clk
0:21:09]} 46... Qc7 {[%clk 0:00:34]} 47. exf5 {[%clk 0:20:37]} 47... Qxb6 {[%clk
0:00:32]} 48. Qg6+ {[%clk 0:20:48]} 48... Kh8 {[%clk 0:00:57]} 49. Qxf7 {[%clk
0:20:28]} 49... Nd3 {[%clk 0:00:31]} 50. Qe8+ {[%clk 0:20:32]} 50... Bf8 {[%clk
0:00:37]} 51. Qxf8+ {[%clk 0:20:52]} 51... Kh7 {[%clk 0:01:01]} 52. Qf7+ {[%clk
0:21:02]} 52... Kh8 {[%clk 0:01:24]} 53. Qe8+ {[%clk 0:21:20]} 53... Kh7 {[%clk
0:01:34]} 54. Qd7+ {[%clk 0:21:43]} 1-0

[Variant "Standard"]
[Site "Europe Echecs"]

[Event "Championnat du monde jeunes U10"]
[Date "2024.11.19"]
[White "Fuentes de Nova, Sebastian"]
[Black "Blekh, Erik"]
[WhiteElo "1929"]
[BlackElo "1790"]
[Round "5.20"]
[Result "1-0"]
[TimeControl "5400+30"]

1. d4 {[%clk 1:30:30]} 1... Nf6 {[%clk 1:30:43]} 2. Bg5 {[%clk 1:30:29]} 2... g6
{[%clk 1:30:45]} 3. Bxf6 {[%clk 1:30:46]} 3... exf6 {[%clk 1:31:05]} 4. c4
{[%clk 1:31:12]} 4... d5 {[%clk 1:30:55]} 5. cxd5 {[%clk 1:31:27]} 5... Qxd5
{[%clk 1:31:17]} 6. Nc3 {[%clk 1:30:53]} 6... Qd8 {[%clk 1:31:34]} 7. g3 {[%clk
1:31:04]} 7... Nd7 {[%clk 1:30:36]} 8. Bg2 {[%clk 1:31:11]} 8... c6 {[%clk
1:30:26]} 9. e3 {[%clk 1:31:28]} 9... Bd6 {[%clk 1:30:20]} 10. Nge2 {[%clk
1:31:44]} 10... O-O {[%clk 1:30:12]} 11. O-O {[%clk 1:29:18]} 11... f5 {[%clk
1:29:40]} 12. e4 {[%clk 1:28:53]} 12... fxe4 {[%clk 1:29:00]} 13. Nxe4 {[%clk
1:29:02]} 13... Be7 {[%clk 1:26:39]} 14. N2c3 {[%clk 1:27:53]} 14... Nf6 {[%clk
1:26:19]} 15. Nxf6+ {[%clk 1:27:46]} 15... Bxf6 {[%clk 1:26:35]} 16. d5 {[%clk
1:28:08]} 16... cxd5 {[%clk 1:25:46]} 17. Bxd5 {[%clk 1:27:54]} 17... Bh3 {[%clk
1:19:07]} 18. Re1 {[%clk 1:27:40]} 18... Rb8 {[%clk 1:17:49]} 19. Qb3 {[%clk
1:22:38]} 19... b5 {[%clk 1:16:14]} 20. Rad1 {[%clk 1:22:00]} 20... Qb6 {[%clk
1:14:56]} 21. Ne4 {[%clk 1:16:14]} 21... Bg4 {[%clk 1:09:26]} 22. Bxf7+ {[%clk
1:14:42]} 22... Rxf7 {[%clk 1:07:42]} 23. Rd6 {[%clk 1:14:35]} 23... Qa5 {[%clk
1:06:21]} 24. Nxf6+ {[%clk 1:13:37]} 24... Kf8 {[%clk 1:03:46]} 25. Qe3 {[%clk
1:09:59]} 25... Bf5 26. g4 {[%clk 0:59:58]} 26... Kg7 {[%clk 0:59:29]} 27. gxf5
{[%clk 0:59:51]} 27... Rxf6 {[%clk 0:59:39]} 28. Rxf6 {[%clk 1:00:06]} 28...
Kxf6 {[%clk 0:59:57]} 29. Qe7+ {[%clk 1:00:29]} 29... Kxf5 {[%clk 1:00:11]} 30.
Qe5+ {[%clk 1:00:53]} 30... Kg4 {[%clk 1:00:17]} 31. Re4+ {[%clk 1:01:17]} 1-0

[Variant "Standard"]
[Site "Europe Echecs"]

[Event "Championnat du monde jeunes U10"]
[Date "2024.11.19"]
[White "Nguyen Minh"]
[Black "Ejsymont, Eryk"]
[WhiteElo "1760"]
[BlackElo "1910"]
[Round "5.21"]
[Result "1/2-1/2"]
[TimeControl "5400+30"]

1. d4 {[%clk 1:30:55]} 1... Nf6 {[%clk 1:30:53]} 2. c4 {[%clk 1:31:21]} 2... e6
{[%clk 1:31:15]} 3. Nf3 {[%clk 1:31:47]} 3... d5 {[%clk 1:31:32]} 4. Nc3 {[%clk
1:32:10]} 4... dxc4 {[%clk 1:31:47]} 5. e3 {[%clk 1:29:39]} 5... a6 {[%clk
1:32:09]} 6. Bxc4 {[%clk 1:29:51]} 6... b5 {[%clk 1:32:32]} 7. Bd3 {[%clk
1:30:11]} 7... Bb7 {[%clk 1:32:26]} 8. O-O {[%clk 1:29:17]} 8... c5 {[%clk
1:32:09]} 9. Qe2 {[%clk 1:21:52]} 9... cxd4 {[%clk 1:31:32]} 10. Nxd4 {[%clk
1:20:43]} 10... Bd6 {[%clk 1:30:13]} 11. Rd1 {[%clk 1:19:04]} 11... Qe7 {[%clk
1:27:16]} 12. e4 {[%clk 1:16:42]} 12... Nbd7 {[%clk 1:25:37]} 13. Bg5 {[%clk
1:08:43]} 13... b4 {[%clk 1:08:16]} 14. Na4 {[%clk 1:05:40]} 14... h6 {[%clk
1:08:08]} 15. Bd2 {[%clk 0:50:34]} 15... Bxh2+ {[%clk 1:00:55]} 16. Kxh2 {[%clk
0:50:02]} 16... Qd6+ {[%clk 1:01:17]} 17. f4 {[%clk 0:49:46]} 17... Qxd4 {[%clk
1:01:19]} 18. Re1 {[%clk 0:23:29]} 18... h5 {[%clk 1:00:30]} 19. Be3 {[%clk
0:15:34]} 19... Ng4+ {[%clk 1:00:18]} 20. Kg1 {[%clk 0:15:54]} 20... Nxe3 {[%clk
0:59:10]} 21. Qxe3 {[%clk 0:16:17]} 21... Qxe3+ {[%clk 0:59:26]} 22. Rxe3 {[%clk
0:16:41]} 22... Rc8 {[%clk 0:59:02]} 23. b3 {[%clk 0:13:47]} 23... Nc5 {[%clk
0:49:37]} 24. Nxc5 {[%clk 0:14:05]} 24... Rxc5 {[%clk 0:50:06]} 25. Bc4 {[%clk
0:14:07]} 25... Ke7 {[%clk 0:49:42]} 26. Rd1 {[%clk 0:13:08]} 26... Rcc8 {[%clk
0:46:09]} 27. Kf2 {[%clk 0:08:00]} 27... Rcd8 {[%clk 0:43:39]} 28. Rxd8 {[%clk
0:06:49]} 28... Rxd8 {[%clk 0:43:33]} 29. Bd3 {[%clk 0:07:00]} 29... a5 {[%clk
0:42:54]} 30. Bc2 {[%clk 0:04:02]} 30... Ba6 {[%clk 0:42:18]} 31. Ke1 {[%clk
0:04:27]} 31... Rd4 {[%clk 0:39:12]} 32. Rg3 {[%clk 0:03:31]} 32... Bb7 {[%clk
0:38:39]} 33. Ke2 {[%clk 0:03:22]} 33... g6 {[%clk 0:37:33]} 34. Rg5 {[%clk
0:03:27]} 1/2-1/2

[Variant "Standard"]
[Site "Europe Echecs"]